Cogmind - Beta 13 X1 @@@ ROGUE MODE // 2023.09.14 @ 01:46:32 Player: VR-DUX Result: Destroyed by D-53 Grenadier with Mini Grenade Launcher Performance ------------- Evolutions (0) 0 Regions Visited (4) 800 Robots Destroyed (23) 115 Value Destroyed (448) 448 Prototype IDs (23) 460 Alien Tech Used (0) 0 Bonus (321) 321 TOTAL SCORE: 2144 Bonus ------- Follower Combat Kills 21 Aligned with FarCom 300 Cogmind --------- Core Integrity 0/250 Matter 199/300 Energy 250/250 System Corruption 0% Temperature Cool (0) Movement Rolling (175) Ox5 Location -9/Mines Parts ------- > --- POWER (1) -------- Ion Engine > --- PROPULSION (2) --- Compact Wheel > --- UTILITY (2) ------ Huge Storage Unit Structural Scanner > --- WEAPON (2) ------- (None) > --- INVENTORY (25) --- Light Ion Engine Light Treads Light Treads Medium Storage Unit Large Storage Unit Superbattery (1500) Signal Interpreter Targeting Computer Improved Weapon Shielding Light Armor Plating Hacking Suite EM Pulse Gun EM Pulse Cannon Guided Plasma Cannon Assault Rifle Assault Rifle Light Cannon Light Cannon Battle Cannon Datajack Hammer Katana Deploy-a-Sentry Deploy-a-Sentry Deploy-a-Sentry Peak State ------------ > --- POWER ------------ Ion Engine > --- PROPULSION ------- Wheel Compact Wheel > --- UTILITY ---------- Huge Storage Unit Structural Scanner > --- WEAPON ----------- Assault Rifle Katana > --- INVENTORY -------- Light Treads Light Treads Medium Storage Unit Large Storage Unit Superbattery Signal Interpreter Signal Interpreter Targeting Computer Core Shielding Improved Weapon Shielding Light Armor Plating Hacking Suite EM Pulse Gun EM Pulse Cannon Guided Plasma Cannon Assault Rifle Light Assault Rifle Light Cannon Light Cannon Grenade Launcher Datajack Hammer Deploy-a-Sentry Deploy-a-Sentry Deploy-a-Sentry [Rating: 15] Favorites ----------- Power Ion Engine Engine Ion Engine Propulsion Light Treads Treads Light Treads Leg Aluminum Leg Wheel Compact Wheel Utility Structural Scanner Device Structural Scanner Storage Huge Storage Unit Weapon Assault Rifle Energy Gun EM Pulse Gun Ballistic Gun Assault Rifle Launcher Grenade Launcher Slashing Weapon Katana Build | -11 -10 -10 -10 -9 ------- Run | Jun Mat Min Exi Min Slots Evolved . | . . . . . Power . | . . . . . Propulsion . | . . . . . Utility . | . . . . . Weapon . | . . . . . Parts Attached 16 | . 8 5 1 2 Power 1 | . . . 1 . Engine 1 | . . . 1 . Core . | . . . . . Reactor . | . . . . . Propulsion 4 | . 2 2 . . Treads 2 | . 2 . . . Leg . | . . . . . Wheel 2 | . . 2 . . Hover . | . . . . . Flight . | . . . . . Utility 3 | . 2 1 . . Device 1 | . 1 . . . Storage 2 | . 1 1 . . Processor . | . . . . . Hackware . | . . . . . Protection . | . . . . . Artifact . | . . . . . Weapon 8 | . 4 2 . 2 Energy Gun 1 | . 1 . . . Energy Cannon . | . . . . . Ballistic Gun 2 | . 1 1 . . Ballistic Cannon . | . . . . . Launcher 4 | . 2 . . 2 Special Weapon . | . . . . . Impact Weapon . | . . . . . Slashing Weapon 1 | . . 1 . . Piercing Weapon . | . . . . . Special Melee Weapon . | . . . . . Unidentified Prototypes . | . . . . . Parts Lost 3 | . . . . 3 Power . | . . . . . Propulsion 1 | . . . . 1 Utility . | . . . . . Weapon 2 | . . . . 2 Highest Loss Streak 3 | . . . . 3 To Critical Strikes . | . . . . . Average Slot Usage (%) 99 | . 98 100 100 98 Engine 14 | . 14 14 14 14 Treads 9 | . 23 8 . . Leg 1 | . 4 . . . Wheel 16 | . . 19 28 27 Device 13 | . 12 14 14 14 Storage 14 | . 14 14 14 14 Energy Gun 1 | . 5 . . . Ballistic Gun 17 | . 15 26 14 12 Launcher 2 | . 7 . . 2 Slashing Weapon 5 | . . 1 14 12 Naked Turns . | . . . . . Heaviest Build 93 | 14 51 90 90 93 Greatest Support 40 | 20 40 40 26 26 Greatest Overweight (x) 5 | . 1 3 3 5 Average Overweight (x) 2 | . . 2 3 3 Largest Inventory Capacity 25 | 8 20 25 25 25 Average Capacity 21 | 8 14 23 25 25 Most Carried 25 | 6 13 21 25 25 Average Carried 17 | 6 8 16 24 24 Final Capacity 25 | 8 20 25 25 25 Final Carried 25 | 6 13 21 25 25 Class Distribution -------------------- 100% | Mutant Dominant Class ---------------- Mutant | -10/Materials Mutant | -10/Mines Mutant | -10/Exiles Mutant | -9/Mines Resources | -11 -10 -10 -10 -9 ----------- Run | Jun Mat Min Exi Min Matter Collected 636 | 200 335 54 . 47 Remotely . | . . . . . Salvage Created 573 | . 391 . . 182 Parts 45 | . 36 . . 9 Haulers Intercepted . | . . . . . Recyclers Shooed 1 | . . 1 . . Parts Field Recycled . | . . . . . Retrieved Matter . | . . . . . Parts Self-Destructed . | . . . . . Prevented . | . . . . . Kills | -11 -10 -10 -10 -9 ------- Run | Jun Mat Min Exi Min Combat Hostiles Destroyed 22 | . 11 . . 11 Guns 6 | . 6 . . . AOE 16 | . 5 . . 11 Classes Destroyed 10 | . 8 . . 2 Worker 4 | . 2 . . 2 Builder 1 | . 1 . . . Tunneler 2 | . . . . 2 Recycler 2 | . 1 . . 1 Mechanic 1 | . 1 . . . Operator 1 | . 1 . . . Watcher 1 | . 1 . . . Swarmer 3 | . 3 . . . Grunt 8 | . 8 . . . Assembled 11 | . . . . 11 Best Kill Streak 11 | . 4 . . 11 Combat Bots Only 11 | . 3 . . 11 Max Kills in Single Turn 3 | . 2 . . 3 Gunslinging . | . . . . . Exploded 3 | . 1 . . 3 Melee . | . . . . . Uniques/NPCs Destroyed . | . . . . . Combat | -11 -10 -10 -10 -9 -------- Run | Jun Mat Min Exi Min Damage Taken 835 | . 450 . . 385 Core 250 | . 70 . . 180 Absorbed by Shields . | . . . . . Core Remaining (%) 100 | 100 . . . . Volleys Fired 70 | . 58 2 . 10 Largest 2 | . 2 2 . 2 Hottest 63 | . 60 40 . 63 Shots Fired 82 | . 68 3 . 11 Gun 58 | . 55 3 . . Cannon . | . . . . . Launcher 24 | . 13 . . 11 Special . | . . . . . Kinetic 48 | . 45 3 . . Thermal . | . . . . . Explosive 24 | . 13 . . 11 Electromagnetic 10 | . 10 . . . Robot Hit Streak 9 | . 9 6 . 7 Robot Miss Streak 3 | . 3 . . 3 Penetration Max . | . . . . . Secondary Targets . | . . . . . Shots Hit Robots 50 | . 40 2 . 8 Core Hits 58 | . 32 1 . 25 Critical Kills . | . . . . . Critical Parts Destroyed . | . . . . . Critical Strikes . | . . . . . Melee Attacks 6 | . . 1 . 5 Impact . | . . . . . Slashing 6 | . . 1 . 5 Piercing . | . . . . . Sneak Attacks 5 | . . . . 5 Combat Hostiles . | . . . . . Follow-up Attacks . | . . . . . Damage Inflicted 2024 | . 1041 19 . 964 Guns 535 | . 516 19 . . Cannons . | . . . . . Explosions 1161 | . 525 . . 636 Melee 328 | . . . . 328 Ramming . | . . . . . Kinetic 423 | . 404 19 . . Thermal . | . . . . . Explosive 1161 | . 525 . . 636 Electromagnetic 112 | . 112 . . . Impact . | . . . . . Slashing 328 | . . . . 328 Piercing . | . . . . . Highest Corruption . | . . . . . Average Corruption . | . . . . . Corruption Purged . | . . . . . Corruption Blocked . | . . . . . Overload Shots . | . . . . . Overflow Damage 111 | . 10 . . 101 Projectiles . | . . . . . Explosions 27 | . 10 . . 17 Melee 84 | . . . . 84 Knockbacks . | . . . . . Impact . | . . . . . Kinetic . | . . . . . Secondary . | . . . . . Self-Inflicted Damage 18 | . 18 . . . Shots 2 | . 2 . . . Rammed . | . . . . . Targets Rammed . | . . . . . Kicked . | . . . . . Crushed . | . . . . . Highest Temperature 24 | . 24 . . 3 Average Temperature 12 | . 14 . . 2 Received Heat Transfer 209 | . 189 . . 20 Siege Activations . | . . . . . Robots Corrupted . | . . . . . Combat Hostiles . | . . . . . Parts Fried . | . . . . . Impact Corruptions . | . . . . . Robots Melted . | . . . . . Combat Hostiles . | . . . . . Parts Melted . | . . . . . Heat Transferred . | . . . . . Parts Sabotaged . | . . . . . Parts Stolen . | . . . . . Parts Stripped . | . . . . . Power Chain Reactions . | . . . . . Missiles Intercepted . | . . . . . Alert | -11 -10 -10 -10 -9 ------- Run | Jun Mat Min Exi Min Peak Influence 415 | . 415 87 . 66 Initial 79 | . . 79 . . Average 107 | . 231 50 . 11 Maximum Alert Level 2 | . 2 . . . Low Security (%) 72 | 100 26 100 . 100 Level 1 24 | . 65 . . . Level 2 3 | . 7 . . . Level 3 . | . . . . . Level 4 . | . . . . . Level 5 . | . . . . . High Security . | . . . . . Max Security . | . . . . . Squads Dispatched 3 | . 2 1 . . Investigation 2 | . 1 1 . . Extermination . | . . . . . Reinforcement 1 | . 1 . . . Assault . | . . . . . Garrison . | . . . . . Intercept . | . . . . . Searches Triggered . | . . . . . Construction Impeded . | . . . . . Haulers Reinforced . | . . . . . Active Scanning Responses . | . . . . . Cargo Convoy Interrupts . | . . . . . Stealth | -11 -10 -10 -10 -9 --------- Run | Jun Mat Min Exi Min Distress Signals 2 | . 2 . . . Communications Jammed . | . . . . . Distress Signals . | . . . . . Times Spotted 47 | . 29 2 . 16 Peak Tracking Total 6 | . 6 2 . 6 Tactical Retreats 2 | . 2 . . . Traps | -11 -10 -10 -10 -9 ------- Run | Jun Mat Min Exi Min Traps Triggered 1 | . 1 . . . Indirectly . | . . . . . Trap Hack Attempts . | . . . . . Triggered . | . . . . . Disarmed 6 | . 6 . . . Reprogrammed . | . . . . . Reused . | . . . . . Traps Extracted . | . . . . . Installed . | . . . . . Triggered . | . . . . . Machines | -11 -10 -10 -10 -9 ---------- Run | Jun Mat Min Exi Min Machines Disabled 4 | . 4 . . . Max in Single Turn 1 | . 1 . . . Machines Repaired . | . . . . . Machines Sabotaged . | . . . . . Overloaded Fab Kills . | . . . . . Hacking | -11 -10 -10 -10 -9 --------- Run | Jun Mat Min Exi Min Machines Accessed 8 | . 5 1 2 . Terminals 4 | . 4 . . . Fabricators . | . . . . . Repair Stations . | . . . . . Recycling Units 1 | . 1 . . . Scanalyzers . | . . . . . Garrison Access . | . . . . . Total Hacks 15 | . 12 1 2 . Successful 7 | . 4 1 2 . Failed 8 | . 8 . . . Catastrophic 3 | . 3 . . . Database Lockouts . | . . . . . Manual 9 | . 8 . 1 . Terminals 10 | . 10 . . . Fabricators . | . . . . . Repair Stations . | . . . . . Recycling Units 2 | . 2 . . . Scanalyzers . | . . . . . Garrison Access . | . . . . . Terminal Hacks 5 | . 2 1 2 . Record 1 | . . . 1 . Open Door 1 | . . 1 . . Branch Access Points 1 | . 1 . . . Disarm Traps 1 | . 1 . . . Derelict Proto ID Bank 1 | . . . 1 . Fabricator Hacks . | . . . . . Repair Station Hacks . | . . . . . Recycling Unit Hacks 1 | . 1 . . . Retrieve Components 1 | . 1 . . . Scanalyzer . | . . . . . Garrison Access Hacks . | . . . . . Unauthorized Hacks 1 | . 1 . . . Terminals 1 | . 1 . . . Assimilate 1 | . 1 . . . Fabricators . | . . . . . Repair Stations . | . . . . . Recycling Units . | . . . . . Scanalyzers . | . . . . . Garrison Access . | . . . . . Data Cores Recovered . | . . . . . Used . | . . . . . Hacking Detections 5 | . 5 . . . Full Trace Events 1 | . 1 . . . Feedback Events . | . . . . . Feedback Blocked . | . . . . . Robot Schematics Acquired . | . . . . . Robots Built . | . . . . . Authchips . | . . . . . Time . | . . . . . Total Robot Build Rating . | . . . . . Part Schematics Acquired . | . . . . . Parts Built . | . . . . . Authchips . | . . . . . Time . | . . . . . Total Part Build Rating . | . . . . . Parts Repaired . | . . . . . Time . | . . . . . Parts Recycled . | . . . . . Recycled Matter . | . . . . . Retrieved Matter . | . . . . . Retrieved Components 2 | . 2 . . . Parts Scanalyzed . | . . . . . Part Schematics Acquired . | . . . . . Parts Damaged . | . . . . . Bothacking | -11 -10 -10 -10 -9 ------------ Run | Jun Mat Min Exi Min Used RIF Installer . | . . . . . Robots Hacked . | . . . . . Non-combat . | . . . . . Combat . | . . . . . Robot Hacks Applied . | . . . . . Relay Couplers Released . | . . . . . Fabnet Peak Effective % . | . . . . . Robots Rewired . | . . . . . Allies Hacked . | . . . . . Hacks Repelled . | . . . . . Allies | -11 -10 -10 -10 -9 -------- Run | Jun Mat Min Exi Min Total Allies 3 | . . 3 . . Largest Group 3 | . . 3 3 3 Highest-Rated Group 40 | . . 40 40 40 Highest-Rated Ally 16 | . . 16 16 16 Total Orders 3 | . . . . 3 STAY 3 | . . . . 3 Ally Attacks 16 | . . 10 . 6 Total Damage 178 | . . 94 . 84 Kills 7 | . . 4 . 3 Allies Corrupted . | . . . . . Allies Melted . | . . . . . Intel | -11 -10 -10 -10 -9 ------- Run | Jun Mat Min Exi Min Robot Analysis Total . | . . . . . Derelict Logs Recovered 2 | . . 1 . 1 Drone Launches . | . . . . . Drone Recoveries . | . . . . . Exploration | -11 -10 -10 -10 -9 ------------- Run | Jun Mat Min Exi Min Turns Passed 3056 | 3 940 828 571 714 Spaces Moved 1812 | 3 407 503 412 487 Core . | . . . . . Treads 429 | . 327 102 . . Legs 83 | 3 80 . . . Wheels 1300 | . . 401 412 487 Hover . | . . . . . Flight . | . . . . . Fastest Speed 120 | 120 120 135 135 135 Average Speed 153 | 120 189 156 135 135 Slowest Speed 320 | 120 240 320 135 175 Overloaded Moves . | . . . . . Propulsion Burnouts . | . . . . . Robots Hopped . | . . . . . Cave-ins Triggered . | . . . . . Exploration Rate (%) 61 | 2 90 73 63 80 Regions Visited 4 Branch Regions 3 Pre-discovered Areas 2 | . . 1 1 . Known Exits Taken 1 | . 1 . . . Unknown Exits Taken 3 | 1 . 1 1 . Scrap Searched 4 | . . 1 . 3 Spaces Dug 1 | . . 1 . . Terrain Destroyed 169 | . 93 1 . 75 Melee 1 | . . 1 . . Projectile . | . . . . . AOE 168 | . 93 . . 75 Terrain Rammed . | . . . . . Walls Destroyed . | . . . . . Machines Disabled . | . . . . . Actions | -11 -10 -10 -10 -9 --------- Run | Jun Mat Min Exi Min Total 2001 | 2 510 536 429 524 Wait 47 | . 16 16 3 12 Move 1808 | 2 406 502 411 487 Hop . | . . . . . Pick Up 34 | . 14 7 9 4 Fast Attach 2 | . 1 1 . . Attach 2 | . 1 . 1 . Detach 1 | . . 1 . . Swap 12 | . 6 4 . 2 Drop 19 | . 8 2 5 4 Fire 70 | . 58 2 . 10 Melee 6 | . . 1 . 5 Ram . | . . . . . Kick . | . . . . . Crush . | . . . . . Escape Stasis . | . . . . . Rewire . | . . . . . Trap . | . . . . . Miscellaneous . | . . . . . Route ------- -11/Junkyard -10/Materials (discovered 5 exits: [*Mat x3] / *Min x2) -10/Mines (discovered 3 exits: [*Mat x2] / *Exi) -10/Exiles -9/Mines (discovered 1 exit: [*Mat]) History --------- Turn | Location | Event 1 | -11/Junkyard | Discovered new exit (range 3) 4 | -11/Junkyard | Entered Materials 271 | -10/Materials | Discovered new exit (range 14) 314 | -10/Materials | Build established: Mutant 397 | -10/Materials | Discovered new exit (range 16) 546 | -10/Materials | Discovered new exit (range 12) 728 | -10/Materials | Discovered new exit (range 8) 828 | -10/Materials | Identified exit to Mines 944 | -10/Materials | Entered Mines 971 | -10/Mines | Deemed a non-threat by the Exiles lab entrance 971 | -10/Mines | Discovered new exit (range 5) 1048 | -10/Mines | Discovered new exit (range 14) 1216 | -10/Mines | Learned location of Zion (-7) 1317 | -10/Mines | Joined a pair of Derelicts in attacking an 0b10 outpost 1567 | -10/Mines | Assisted by bots powering up and referring to "LRC-V3" 1607 | -10/Mines | Discovered new exit (range 9) 1686 | -10/Mines | Met a Derelict shopkeep closing up shop 1772 | -10/Mines | Entered Exiles 1772 | -10/Exiles | Accompanied by 3 allies 1809 | -10/Exiles | Met 8R-AWN 1831 | -10/Exiles | Met EX-HEX 1870 | -10/Exiles | Met EX-BIN 1889 | -10/Exiles | Aligned with FarCom system 1890 | -10/Exiles | Given EX-Vault access code 1923 | -10/Exiles | Opened EX-Vault 1932 | -10/Exiles | Found Superbattery 1961 | -10/Exiles | Warned to stay clear of 0b10 Research branches 2005 | -10/Exiles | Met EX-DEC 2196 | -10/Exiles | Found Deploy-a-Sentry 2199 | -10/Exiles | Found Deploy-a-Sentry 2201 | -10/Exiles | Found Deploy-a-Sentry 2210 | -10/Exiles | Found Gui. Plasma Cannon 2325 | -10/Exiles | Discovered new exit (range 14) 2343 | -10/Exiles | Stole three prototypes: Superbattery, Gui. Plasma Cannon, Deploy-a-Sentry 2343 | -10/Exiles | Entered Mines 2343 | -9/Mines | Accompanied by 3 allies 2362 | -9/Mines | Learned Materials stockpile data 2543 | -9/Mines | Discovered new exit (range 7) 2694 | -9/Mines | A weapon hastily lodged in a ceiling crevice suddenly fell to the ground 2972 | -9/Mines | Received a Rocket Launcher from a helpful Derelict 2973 | -9/Mines | Assembled infested the area 3021 | -9/Mines | Core integrity fell below 50% 3037 | -9/Mines | Destroyed 11 combat bots 3052 | -9/Mines | Core integrity fell below 20% 3057 | -9/Mines | Destroyed by D-53 Grenadier with Mini Grenade Launcher Last Messages --------------- 03010_ as-37278 destroyed. 03012_ as-80358 destroyed. 03014_ as-26067 destroyed. 03014_ as-66327 destroyed. 03016_ as-19621 destroyed. 03016_ as-30835 destroyed. 03018_ The unstable cave ceiling collapses. 03018_ Grenade Launcher destroyed. 03020_ The unstable cave ceiling collapses. 03026_ Acquired 4 matter. 03035_ as-16907 destroyed. 03035_ as-26964 destroyed. 03035_ Wheel destroyed. 03036_ The unstable cave ceiling collapses. 03037_ as-91484 destroyed. 03038_ The unstable cave ceiling collapses. 03039_ as-63452 destroyed. 03039_ as-84651 destroyed. 03055_ The unstable cave ceiling collapses. 03057_ Rocket Launcher destroyed. Map ----- +----------------------------------------------------+ | ????????????????????????????## | | ????????????????????????????## | | ????????????????????????????## | | ????????????????????????????## | | ????????????????????????????## | | ????????????????????????????## | | ????????????????????????????## | | ?????????????????????????????# | | ????????????????###??????????? | | ???????????????? ####????????? | | ???????????????? ####???????? | | ??????????????? ##?###???? | | ??????????????? ##### ? ?? | | ??????????????# ?### ??? | | ?????????????### ##### ??? | | ???????????### #### ???? | | ?????????#### ### #???? | | ?#####???### ##???? | | ########### # ##???? | | ### ###### # ##???? | | ## < ## # # ##???? | | ## ####????? | | ## ######?? | | # d ######? | | ## # ###? | | ## @ ##? | | # ## ##? | | ## #### ###? | | ## # ####? | | #### # ## [ ###### | | ####### ### ###### | | ??##### """" #### ##?### | | ?????## """" #### ##### | | ?????## """" #### ##### | | ?????## #### *[### | | ???????? ""?" ##### ###!### | | ???????? ""?" ##########%### | | ?????????"??" ##?#######*### | | ????????? ??? ##??????##=### | | ????????????????????????##=!%= | | ????????????????????????#####% | | ????????????????????????##### | | ???????????????????????????## | | ???????????????????????????## | | ??????????????????????????#### | | ?????????????????????????##### | | ?????????????????????####### | | ????????????????????####### | | ????????????????????### | | ???????????????####### | +----------------------------------------------------+ Best States ------------- Heat Dissipation 25 Energy Generation 10 Energy Capacity 250 Matter Stores 300 Matter Capacity 300 Sight Range 16 Terrain Scan Density 10 Evasion (%) 55 Recoil Reduction 2 Item Schematics ----------------- None Robot Schematics ------------------ None Fabricated ------------ Nothing Alien Tech Used ----------------- None Achievements -------------- None Challenges ------------ None Game ------ Seed PhaseStealthStreamer Manual? 0 Play Time 00:26:11 Cumulative 139.7 hours Start 2023.09.14 @ 01:19:02 End 2023.09.14 @ 01:46:32 Sessions 1 Manual Loads 0 Difficulty Rogue Special Mode None Game No. 92 Rogue 92 Adventurer 0 Explorer 0 Win Type - Total 3 Types 2/0/1/0/0/0/0/0/0 Lore% 48 Gallery% 47 Achievement% 45 Wizard Run 0 Options --------- ASCII 0 Keyboard 0 Movement Mouse Keybinds 0 Fullscreen 1 Font 18/SmallcapsGlow Map View 76x50 Tactical HUD 1 Map Filters NONE Filters NONE Steam X RUN: a6e2adf9-7edf-4af5-b44c-660dd4a8e32f